{"text_format":"1","workbook":"xlsx","n_sheets":6,"sheets":["CALENDARIO","BaseDatos","Festivos","Config","INSTRUCCIONES","DOC_TECNICA"],"not_rendered":{"charts":0,"images":0,"macros":1,"external_links":0,"defined_names":1,"comments":0,"pivot_tables":0},"unopened":[],"bounds":{"document_bytes":16777216,"sheet_cells":100000,"rows_first":2000,"rows_last":500,"rows_between":2000,"halvings":0,"cell_chars":16384,"cell_head_chars":4096},"cells_cut":0,"cells_raw":0,"read":"whole","date_system":"1900"}

{"sheet":"CALENDARIO","index":0,"n_rows":98,"n_cols":10,"rows_kept":98,"cut":false,"hidden":false,"merged":[[20,9,27,11],[27,1,27,7],[3,1,3,7],[4,9,11,11],[11,1,11,7],[12,9,19,11],[19,1,19,7],[28,9,35,11],[35,1,35,7],[36,9,43,11],[43,1,43,7],[44,9,51,11],[51,1,51,7],[52,9,59,11],[59,1,59,7],[60,9,67,11],[67,1,67,7],[68,9,75,11],[75,1,75,7],[76,9,83,11],[83,1,83,7],[84,9,91,11],[91,1,91,7],[92,9,99,11]]}
["CALENDARIO INTERNO 2026",null,null,null,null,"NOTA: Al actualizar, se mantiene el texto de 'OBSERVACIONES' pero se regenera todo el calendario."]
[]
[]
[null,"ENERO 2026",null,null,null,null,null,null,null,"OBSERVACIONES"]
[null,"L","M","X","J","V","S","D"]
[null,null,null,null,"1\n★ Año Nuevo\n","2\n★ Vacaciones 2026 Empresa\n",3,4]
[null,"5\n★ Vacaciones 2026 Empresa\n","6\n★ Reyes\n",7,"8\nADM: Soluciones Tecnológicas Avanzadas S.A.\nADM: Redes de Comunicación Satelital\nMPO: Manufactura de Plásticos S.A.",9,"10\nAVP: Servicios Arquitectónicos\nPPLU: Servicios de Sonido Profesional",11]
[null,12,"13\nADM: Logística y Transportes del Sur\nMPO: Almacenes Generales de Depósito\nPPLU: Comercializadora de Papelería","14\nAVP: Comercializadora de Frutas\nPPLU: Logística de Productos Fríos","15\nADM: Consultoría Estratégica Horizonte",16,17,18]
[null,19,"20\nADM: Inversiones Capitales Alpha\nMPO: Consultoría de Riesgos Global","21\nADM: Desarrollos Urbanos Integrales","22\n★ San Vicente\n","23\n★ Vacaciones 2026 Empresa\n",24,25]
[null,26,"27\nMPO: Inversiones en Bienes Raíces","28\nADM: Manufacturas Industriales Delta\nMPO: Transportes de Carga Pesada\nAVP: Soluciones de Energía Solar\nPPLU: Gestión de Flotas Vehiculares","29\nADM: Alimentos Procesados del Valle\nMPO: Soluciones Informáticas Cloud\nAVP: Grupo Logístico Integral\nPPLU: Consultores de Negocios","30\nMGM: Vacaciones 2026",31]
[]
[null,"FEBRERO 2026"]
[null,"L","M","X","J","V","S","D"]
[null,null,null,null,null,null,null,1]
[null,"2\nADM: Servicios Médicos Globales","3\nADM: Comercializadora Interoceánica\nMPO: Grupo Empresarial del Centro\nAVP: Consultoría en Sostenibilidad\nPPLU: Servicios de Impresión 3D","4\nADM: Grupo Constructor Los Arcos","5\nADM: Innovación Digital 360\nMPO: Comercializadora de Granos","6\nADM: Textiles y Confecciones S.A.\nMPO: Servicios de Ingeniería Civil",7,8]
[null,"9\nADM: Energías Renovables del Norte","10\nAVP: Fabricación de Muebles de Oficina\nPPLU: Suministros de Ferretería","11\nADM: Distribuidora Mayorista Élite\nAVP: Servicios de Outsourcing RRHH\nPPLU: Desarrollo de Inteligencia Artificial","12\nADM: Gestión de Activos Financieros\nAVP: Inversiones en Startups\nPPLU: Agencia de Modelaje y Publicidad",13,14,15]
[null,"16\nADM: Publicidad y Medios Creativos\nMPO: Suministros de Oficina Express","17\nADM: Suministros Eléctricos Sigma\nMPO: Marketing Digital Estratégico\nAVP: Mantenimiento de Maquinaria\nPPLU: Servicios de Remolcadores","18\nADM: Agroindustrias Unidas S.L.\nAVP: Desarrollo de E-commerce\nPPLU: Industria de Calzado","19\nADM: Importaciones Selectas Mundiales","20\nADM: Ingeniería y Diseño Estructural",21,22]
[null,"23\nADM: Soluciones Ambientales Verdes","24\nADM: Telecomunicaciones del Pacífico","25\nADM: Seguridad Privada Centinela\nMPO: Industria Metalmecánica S.L.","26\nADM: Hotelería y Turismo Nacional\nMPO: Servicios de Mensajería Local\nAVP: Industria de Cosméticos\nPPLU: Distribuidora de Neumáticos","27\nADM: Capacitación Corporativa Plus",28]
[]
[null,"MARZO 2026"]
[null,"L","M","X","J","V","S","D"]
[null,null,null,null,null,null,null,1]
[null,2,"3\nAVP: Servicios Fotográficos\nPPLU: Servicios de Paisajismo","4\nMPO: Sistemas de Riego Avanzado\nAVP: Distribuidora de Lácteos\nPPLU: Comercio Electrónico Mayorista","5\nADM: Metales y Aleaciones Industriales\nMPO: Gestión de Residuos Industriales",6,7,8]
[null,"9\nMPO: Alimentos Congelados del Mar","10\nADM: Farmacéutica Vida Saludable\nMPO: Consultoría en Calidad ISO\nAVP: Construcción de Túneles\nPPLU: Fabricación de Componentes","11\nADM: Logística de Carga Express\nAVP: Consultoría de Gestión Pública\nPPLU: Servicios de Auditoría Externa","12\nADM: Servicios Jurídicos Asociados",13,14,15]
[null,"16\n★ Vacaciones 2026 Empresa\n","17\n★ Vacaciones 2026 Empresa\nMPO: Vacaciones 2026","18\n★ Vacaciones 2026 Empresa\nADM: Automotriz del Occidente","19\n★ San José\n","20\n★ Vacaciones 2026 Empresa\n",21,22]
[null,"23\nMPO: Servicios de Seguridad Cibernética","24\nADM: Inmobiliaria Siglo XXI","25\nADM: Software de Gestión Omega\nMPO: Distribuidora de Bebidas\nAVP: Servicios de Catering Gourmet\nPPLU: Logística de Repuestos","26\nADM: Consultores en Recursos Humanos\nMPO: Textilería y Moda Actual\nAVP: Agencia de Viajes de Negocios\nPPLU: Gestión de Redes Sociales",27,28,29]
[null,"30\nADM: Química Industrial Básica\nMPO: Desarrollo de Aplicaciones Móviles","31\nADM: Embalajes y Empaques Pro\nMPO: Constructora de Vivienda Social\nPPLU: Consultoría Legal Corporativa"]
[null,"ABRIL 2026"]
[null,"L","M","X","J","V","S","D"]
[null,null,null,"1\nPPLU: Suministros para Laboratorios",2,"3\n★ Viernes Santo\n",4,5]
[null,"6\n★ Lunes de Pascua\n","7\nMGM: Servicios Integrales Élite\nMPO: Vacaciones 2026","8\nECM: Vacaciones 2026\nMPO: Vacaciones 2026","9\nECM: Vacaciones 2026\nMPO: Vacaciones 2026","10\nECM: Vacaciones 2026\nMPO: Vacaciones 2026",11,12]
[null,"13\n★ San Vicente Ferrer\n","14\nMPO: Logística de Última Milla","15\nADM: Mantenimiento Integral Edificios\nMPO: Finanzas Patrimoniales\nAVP: Fabricación de Envases\nPPLU: Comercializadora de Electrónicos","16\nADM: Finanzas y Seguros Corporativos","17\nADM: Editorial y Artes Gráficas",18,19]
[null,20,"21\nADM: Servicios de Limpieza Institucional","22\nADM: Tecnología de Información Beta",23,24,25,26]
[null,"27\nMPO: Servicios de Traducción Profesional\nPPLU: Servicios de Limpieza Industrial","28\nMPO: Implementos Deportivos S.A.\nPPLU: Agencia de Relaciones Públicas",29,"30\nADM: Constructora de Infraestructura"]
[]
[null,"MAYO 2026"]
[null,"L","M","X","J","V","S","D"]
[null,null,null,null,null,"1\n★ Fiesta del Trabajo\n",2,3]
[null,4,"5\nMPO: Agropecuaria Los Llanos\nPPLU: Construcción de Parques Industriales","6\nMPO: Laboratorios Bioquímicos","7\nMPO: Consultores de Comercio Exterior",8,9,10]
[null,11,12,13,14,15,16,17]
[null,"18\nADM: Distribución de Insumos Médicos","19\nADM: Agencia de Aduanas Unificadas",20,"21\nPPLU: Consultoría de Procesos\nGJC: Vacaciones 2026",22,23,24]
[null,25,26,27,"28\nADM: Minería y Recursos Naturales",29,30,31]
[]
[null,"JUNIO 2026"]
[null,"L","M","X","J","V","S","D"]
[null,1,"2\nADM: Auditoría y Contabilidad Fiscal",3,4,5,6,7]
[null,8,9,10,11,12,13,14]
[null,15,16,"17\nMPO: Productora de Eventos Masivos","18\nMPO: Distribuidora de Autopartes","19\nMPO: Equipos de Protección Personal",20,21]
[null,22,23,"24\n★ San Juan\n",25,26,27,28]
[null,29,30]
[]
[null,"JULIO 2026"]
[null,"L","M","X","J","V","S","D"]
[null,null,null,"1\nMPO: Pinturas y Recubrimientos","2\nMPO: Servicios de Hosting y Dominios",3,4,5]
[null,6,7,8,9,10,11,12]
[null,13,14,15,16,17,18,19]
[null,20,21,22,23,24,25,26]
[null,27,28,29,30,31]
[]
[null,"AGOSTO 2026"]
[null,"L","M","X","J","V","S","D"]
[null,null,null,null,null,null,1,2]
[null,3,4,5,6,7,8,9]
[null,10,11,12,13,14,"15\n★ Asunción de la Virgen\n",16]
[null,"17\n★ Vacaciones 2026 Empresa\n","18\n★ Vacaciones 2026 Empresa\n","19\n★ Vacaciones 2026 Empresa\n","20\n★ Vacaciones 2026 Empresa\n","21\n★ Vacaciones 2026 Empresa\n",22,23]
[null,24,25,26,27,28,29,30]
[null,31]
[null,"SEPTIEMBRE 2026"]
[null,"L","M","X","J","V","S","D"]
[null,null,1,2,3,4,5,6]
[null,7,8,9,10,11,12,13]
[null,14,15,16,17,18,19,20]
[null,21,22,23,24,25,26,27]
[null,28,29,30]
[]
[null,"OCTUBRE 2026"]
[null,"L","M","X","J","V","S","D"]
[null,null,null,null,1,2,3,4]
[null,5,6,7,8,"9\n★ Día de la Comunitat Valenciana\n",10,11]
[null,"12\n★ Fiesta Nacional (Día de la Hispanidad)\n",13,14,15,16,17,18]
[null,19,20,21,22,23,24,25]
[null,26,27,28,29,30,31]
[]
[null,"NOVIEMBRE 2026"]
[null,"L","M","X","J","V","S","D"]
[null,null,null,null,null,null,null,"1\n★ Todos los Santos\n"]
[null,2,3,4,5,6,7,8]
[null,9,10,11,12,13,14,15]
[null,16,17,18,19,20,21,22]
[null,23,24,25,26,27,28,29]
[null,30]
[null,"DICIEMBRE 2026"]
[null,"L","M","X","J","V","S","D"]
[null,null,1,2,3,4,5,"6\n★ Día de la Constitución\n"]
[null,7,"8\n★ Inmaculada Concepción\n",9,10,11,12,13]
[null,14,15,16,17,18,19,20]
[null,21,22,23,"24\n★ Nochebuena\n","25\n★ Navidad\n",26,27]
[null,28,29,30,"31\n★ Fin de Año\n"]

{"sheet":"BaseDatos","index":1,"n_rows":135,"n_cols":6,"rows_kept":135,"cut":false,"hidden":false,"merged":[]}
["FECHA","CONFIRMACIÓN","AUDITOR","EMPRESA"]
["2026-01-08",{"$f":"IF(A2=\"\",\"\",TEXT(A2,\"dd mmmm\"))","v":"08 enero"},"ADM","Soluciones Tecnológicas Avanzadas S.A.",null,"IMPORTANTE - CÓMO USAR ESTA HOJA:"]
["2026-01-13","13 enero","ADM","Logística y Transportes del Sur"]
["2026-01-15","15 enero","ADM","Consultoría Estratégica Horizonte",null,"1. Introduce la Fecha de la auditoría (Ej: escribe '5 abr' o '05/04')."]
["2026-01-20","20 enero","ADM","Inversiones Capitales Alpha",null,"2. La columna 'CONFIRMACIÓN' verificará automáticamente que el mes es correcto."]
["2026-01-21","21 enero","ADM","Desarrollos Urbanos Integrales",null,"3. Selecciona el Auditor del menú desplegable."]
["2026-01-28","28 enero","ADM","Manufacturas Industriales Delta",null,"4. Escribe el nombre de la Empresa (pon 'Vacaciones' si corresponde)."]
["2026-01-29","29 enero","ADM","Alimentos Procesados del Valle",null,"5. Ve a la hoja 'CALENDARIO' y pulsa el botón 'ACTUALIZAR'."]
["2026-02-02","02 febrero","ADM","Servicios Médicos Globales"]
["2026-02-03","03 febrero","ADM","Comercializadora Interoceánica"]
["2026-02-04","04 febrero","ADM","Grupo Constructor Los Arcos"]
["2026-02-05","05 febrero","ADM","Innovación Digital 360"]
["2026-02-06","06 febrero","ADM","Textiles y Confecciones S.A."]
["2026-02-09","09 febrero","ADM","Energías Renovables del Norte"]
["2026-02-11","11 febrero","ADM","Distribuidora Mayorista Élite"]
["2026-02-12","12 febrero","ADM","Gestión de Activos Financieros"]
["2026-02-16","16 febrero","ADM","Publicidad y Medios Creativos"]
["2026-02-17","17 febrero","ADM","Suministros Eléctricos Sigma"]
["2026-02-18","18 febrero","ADM","Agroindustrias Unidas S.L."]
["2026-02-19","19 febrero","ADM","Importaciones Selectas Mundiales"]
["2026-02-20","20 febrero","ADM","Ingeniería y Diseño Estructural"]
["2026-02-23","23 febrero","ADM","Soluciones Ambientales Verdes"]
["2026-02-24","24 febrero","ADM","Telecomunicaciones del Pacífico"]
["2026-02-25","25 febrero","ADM","Seguridad Privada Centinela"]
["2026-02-26","26 febrero","ADM","Hotelería y Turismo Nacional"]
["2026-02-27","27 febrero","ADM","Capacitación Corporativa Plus"]
["2026-03-05","05 marzo","ADM","Metales y Aleaciones Industriales"]
["2026-03-10","10 marzo","ADM","Farmacéutica Vida Saludable"]
["2026-03-11","11 marzo","ADM","Logística de Carga Express"]
["2026-03-12","12 marzo","ADM","Servicios Jurídicos Asociados"]
["2026-03-18","18 marzo","ADM","Automotriz del Occidente"]
["2026-03-24","24 marzo","ADM","Inmobiliaria Siglo XXI"]
["2026-03-25","25 marzo","ADM","Software de Gestión Omega"]
["2026-03-26",{"$f":"IF(A34=\"\",\"\",TEXT(A34,\"dd mmmm\"))","v":"26 marzo"},"ADM","Consultores en Recursos Humanos"]
["2026-03-30","30 marzo","ADM","Química Industrial Básica"]
["2026-03-31","31 marzo","ADM","Embalajes y Empaques Pro"]
["2026-04-15","15 abril","ADM","Mantenimiento Integral Edificios"]
["2026-04-16","16 abril","ADM","Finanzas y Seguros Corporativos"]
["2026-04-17","17 abril","ADM","Editorial y Artes Gráficas"]
["2026-04-21","21 abril","ADM","Servicios de Limpieza Institucional"]
["2026-04-22","22 abril","ADM","Tecnología de Información Beta"]
["2026-04-30","30 abril","ADM","Constructora de Infraestructura"]
["2026-05-18","18 mayo","ADM","Distribución de Insumos Médicos"]
["2026-05-19","19 mayo","ADM","Agencia de Aduanas Unificadas"]
["2026-05-28","28 mayo","ADM","Minería y Recursos Naturales"]
["2026-06-02","02 junio","ADM","Auditoría y Contabilidad Fiscal"]
["2026-01-08","08 enero","ADM","Redes de Comunicación Satelital"]
["2026-01-08","08 enero","MPO","Manufactura de Plásticos S.A."]
["2026-01-13","13 enero","MPO","Almacenes Generales de Depósito"]
["2026-01-20","20 enero","MPO","Consultoría de Riesgos Global"]
["2026-01-27","27 enero","MPO","Inversiones en Bienes Raíces"]
["2026-01-28","28 enero","MPO","Transportes de Carga Pesada"]
["2026-01-29","29 enero","MPO","Soluciones Informáticas Cloud"]
["2026-02-03","03 febrero","MPO","Grupo Empresarial del Centro"]
["2026-02-05","05 febrero","MPO","Comercializadora de Granos"]
["2026-02-06","06 febrero","MPO","Servicios de Ingeniería Civil"]
["2026-02-16","16 febrero","MPO","Suministros de Oficina Express"]
["2026-02-17","17 febrero","MPO","Marketing Digital Estratégico"]
["2026-02-25","25 febrero","MPO","Industria Metalmecánica S.L."]
["2026-02-26","26 febrero","MPO","Servicios de Mensajería Local"]
["2026-03-04","04 marzo","MPO","Sistemas de Riego Avanzado"]
["2026-03-05","05 marzo","MPO","Gestión de Residuos Industriales"]
["2026-03-09","09 marzo","MPO","Alimentos Congelados del Mar"]
["2026-03-10","10 marzo","MPO","Consultoría en Calidad ISO"]
["2026-03-23","23 marzo","MPO","Servicios de Seguridad Cibernética"]
["2026-03-25",{"$f":"IF(A66=\"\",\"\",TEXT(A66,\"dd mmmm\"))","v":"25 marzo"},"MPO","Distribuidora de Bebidas"]
["2026-03-26","26 marzo","MPO","Textilería y Moda Actual"]
["2026-03-30","30 marzo","MPO","Desarrollo de Aplicaciones Móviles"]
["2026-03-31","31 marzo","MPO","Constructora de Vivienda Social"]
["2026-04-14","14 abril","MPO","Logística de Última Milla"]
["2026-04-15","15 abril","MPO","Finanzas Patrimoniales"]
["2026-04-27","27 abril","MPO","Servicios de Traducción Profesional"]
["2026-04-28","28 abril","MPO","Implementos Deportivos S.A."]
["2026-05-05","05 mayo","MPO","Agropecuaria Los Llanos"]
["2026-05-06","06 mayo","MPO","Laboratorios Bioquímicos"]
["2026-05-07","07 mayo","MPO","Consultores de Comercio Exterior"]
["2026-07-01","01 julio","MPO","Pinturas y Recubrimientos"]
["2026-07-02","02 julio","MPO","Servicios de Hosting y Dominios"]
["2026-06-17","17 junio","MPO","Productora de Eventos Masivos"]
["2026-06-18","18 junio","MPO","Distribuidora de Autopartes"]
["2026-06-19","19 junio","MPO","Equipos de Protección Personal"]
["2026-01-10","10 enero","AVP","Servicios Arquitectónicos"]
["2026-01-14","14 enero","AVP","Comercializadora de Frutas"]
["2026-01-28","28 enero","AVP","Soluciones de Energía Solar"]
["2026-01-29","29 enero","AVP","Grupo Logístico Integral"]
["2026-02-03","03 febrero","AVP","Consultoría en Sostenibilidad"]
["2026-02-10","10 febrero","AVP","Fabricación de Muebles de Oficina"]
["2026-02-11","11 febrero","AVP","Servicios de Outsourcing RRHH"]
["2026-02-12","12 febrero","AVP","Inversiones en Startups"]
["2026-02-17","17 febrero","AVP","Mantenimiento de Maquinaria"]
["2026-02-18","18 febrero","AVP","Desarrollo de E-commerce"]
["2026-02-26","26 febrero","AVP","Industria de Cosméticos"]
["2026-03-03","03 marzo","AVP","Servicios Fotográficos"]
["2026-03-04","04 marzo","AVP","Distribuidora de Lácteos"]
["2026-03-10","10 marzo","AVP","Construcción de Túneles"]
["2026-03-11","11 marzo","AVP","Consultoría de Gestión Pública"]
["2026-03-25","25 marzo","AVP","Servicios de Catering Gourmet"]
["2026-03-26",{"$f":"IF(A98=\"\",\"\",TEXT(A98,\"dd mmmm\"))","v":"26 marzo"},"AVP","Agencia de Viajes de Negocios"]
["2026-04-15","15 abril","AVP","Fabricación de Envases"]
["2026-01-10","10 enero","PPLU","Servicios de Sonido Profesional"]
["2026-01-13","13 enero","PPLU","Comercializadora de Papelería"]
["2026-01-14","14 enero","PPLU","Logística de Productos Fríos"]
["2026-01-28","28 enero","PPLU","Gestión de Flotas Vehiculares"]
["2026-01-29","29 enero","PPLU","Consultores de Negocios"]
["2026-02-03","03 febrero","PPLU","Servicios de Impresión 3D"]
["2026-02-10","10 febrero","PPLU","Suministros de Ferretería"]
["2026-02-11","11 febrero","PPLU","Desarrollo de Inteligencia Artificial"]
["2026-02-12","12 febrero","PPLU","Agencia de Modelaje y Publicidad"]
["2026-02-17","17 febrero","PPLU","Servicios de Remolcadores"]
["2026-02-18","18 febrero","PPLU","Industria de Calzado"]
["2026-05-21","21 mayo","PPLU","Consultoría de Procesos"]
["2026-02-26","26 febrero","PPLU","Distribuidora de Neumáticos"]
["2026-03-03","03 marzo","PPLU","Servicios de Paisajismo"]
["2026-03-04","04 marzo","PPLU","Comercio Electrónico Mayorista"]
["2026-03-10","10 marzo","PPLU","Fabricación de Componentes"]
["2026-03-11","11 marzo","PPLU","Servicios de Auditoría Externa"]
["2026-03-25","25 marzo","PPLU","Logística de Repuestos"]
["2026-03-26","26 marzo","PPLU","Gestión de Redes Sociales"]
["2026-03-31","31 marzo","PPLU","Consultoría Legal Corporativa"]
["2026-04-01","01 abril","PPLU","Suministros para Laboratorios"]
["2026-04-15","15 abril","PPLU","Comercializadora de Electrónicos"]
["2026-04-27","27 abril","PPLU","Servicios de Limpieza Industrial"]
["2026-04-28","28 abril","PPLU","Agencia de Relaciones Públicas"]
["2026-05-05","05 mayo","PPLU","Construcción de Parques Industriales"]
["2026-05-21","21 mayo","GJC","Vacaciones 2026"]
["2026-04-08","08 abril","ECM","Vacaciones 2026"]
["2026-04-09","09 abril","ECM","Vacaciones 2026"]
["2026-04-10","10 abril","ECM","Vacaciones 2026"]
["2026-01-30","30 enero","MGM","Vacaciones 2026"]
["2026-04-07",{"$f":"IF(A130=\"\",\"\",TEXT(A130,\"dd mmmm\"))","v":"07 abril"},"MGM","Servicios Integrales Élite"]
["2026-03-17","17 marzo","MPO","Vacaciones 2026"]
["2026-04-07","07 abril","MPO","Vacaciones 2026"]
["2026-04-08","08 abril","MPO","Vacaciones 2026"]
["2026-04-09","09 abril","MPO","Vacaciones 2026"]
["2026-04-10","10 abril","MPO","Vacaciones 2026"]

{"sheet":"Festivos","index":2,"n_rows":31,"n_cols":6,"rows_kept":31,"cut":false,"hidden":false,"merged":[]}
["FECHA","CONFIRMACIÓN","NOMBRE FESTIVO / VACACIONES","TIPO (FESTIVO/EMPRESA)"]
["2026-01-01",{"$f":"IF(A2=\"\",\"\",TEXT(A2,\"dd mmmm\"))","v":"01 enero"},"Año Nuevo","FESTIVO",null,"IMPORTANTE - CÓMO USAR ESTA HOJA:"]
["2026-01-02","02 enero","Vacaciones 2026 Empresa","EMPRESA"]
["2026-01-05","05 enero","Vacaciones 2026 Empresa","EMPRESA",null,"1. Añade la fecha. La 'CONFIRMACIÓN' verificará el mes."]
["2026-01-06","06 enero","Reyes","FESTIVO",null,"2. Escribe el nombre del festivo o ausencia."]
["2026-01-22","22 enero","San Vicente","FESTIVO",null,"3. En 'TIPO', elige FESTIVO (color gris) o EMPRESA (degradado)."]
["2026-01-23","23 enero","Vacaciones 2026 Empresa","EMPRESA",null,"4. Ve al calendario y pulsa 'ACTUALIZAR' para ver los cambios."]
["2026-03-16","16 marzo","Vacaciones 2026 Empresa","EMPRESA"]
["2026-03-17","17 marzo","Vacaciones 2026 Empresa","EMPRESA"]
["2026-03-18","18 marzo","Vacaciones 2026 Empresa","EMPRESA"]
["2026-03-19","19 marzo","San José","FESTIVO"]
["2026-03-20","20 marzo","Vacaciones 2026 Empresa","EMPRESA"]
["2026-04-03","03 abril","Viernes Santo","FESTIVO"]
["2026-04-06","06 abril","Lunes de Pascua","FESTIVO"]
["2026-04-13","13 abril","San Vicente Ferrer","FESTIVO"]
["2026-05-01","01 mayo","Fiesta del Trabajo","FESTIVO"]
["2026-06-24","24 junio","San Juan","FESTIVO"]
["2026-08-15","15 agosto","Asunción de la Virgen","FESTIVO"]
["2026-08-17","17 agosto","Vacaciones 2026 Empresa","EMPRESA"]
["2026-08-18","18 agosto","Vacaciones 2026 Empresa","EMPRESA"]
["2026-08-19","19 agosto","Vacaciones 2026 Empresa","EMPRESA"]
["2026-08-20","20 agosto","Vacaciones 2026 Empresa","EMPRESA"]
["2026-08-21","21 agosto","Vacaciones 2026 Empresa","EMPRESA"]
["2026-10-09","09 octubre","Día de la Comunitat Valenciana","FESTIVO"]
["2026-10-12","12 octubre","Fiesta Nacional (Día de la Hispanidad)","FESTIVO"]
["2026-11-01","01 noviembre","Todos los Santos","FESTIVO"]
["2026-12-06","06 diciembre","Día de la Constitución","FESTIVO"]
["2026-12-08","08 diciembre","Inmaculada Concepción","FESTIVO"]
["2026-12-24","24 diciembre","Nochebuena","FESTIVO"]
["2026-12-25","25 diciembre","Navidad","FESTIVO"]
["2026-12-31","31 diciembre","Fin de Año","FESTIVO"]

{"sheet":"Config","index":3,"n_rows":11,"n_cols":8,"rows_kept":11,"cut":false,"hidden":false,"merged":[]}
["AUDITOR","COLOR","CÓDIGO RGB",null,"IMPORTANTE - PANEL DE CONTROL DE COLORES",null,"AÑO DEL ARCHIVO:",2026]
["ADM",null,14489342]
["AVP",null,192,null,"1. Escribe el nombre del nuevo auditor en la Columna A."]
["MPO",null,13107200,null,"2. Pinta la celda de la Columna B con el color que prefieras (usando el bote de pintura de Excel)."]
["PPLU",null,38600,null,"3. Pulsa el botón [ASIGNAR COLORES] para guardar y aplicar los cambios."]
["GJC",null,9099298,null,"(Nota: Si dejas la Columna B sin pintar, el sistema generará un color al azar automáticamente)."]
["ECM",null,13082801]
["MGM",null,9514405]
[null,null,3107669]
[null,null,3937500]
[null,null,25600]

{"sheet":"INSTRUCCIONES","index":4,"n_rows":30,"n_cols":1,"rows_kept":30,"cut":false,"hidden":false,"merged":[]}
["GUÍA DE USO DEL SISTEMA DE AUDITORÍAS"]
[]
["1. BASE DE DATOS:"]
["   - Escribe fechas en 'BaseDatos' como '5/4' o '5 abr'. El archivo validará que sea del año correcto."]
["   - La columna CONFIRMACIÓN te asegurará que Excel ha entendido bien el mes."]
["   - Selecciona el auditor de la lista desplegable."]
["   - Si en EMPRESA escribes 'Vacaciones', aparecerá en gris y cursiva."]
["2. GENERAR CALENDARIO Y NOTAS:"]
["   - Usa el botón 'ACTUALIZAR' en la hoja 'CALENDARIO' para aplicar los cambios."]
["   - El sistema recordará lo que escribas en el cuadro de 'OBSERVACIONES'."]
[]
["3. PANEL DE COLORES (Hoja 'Config'):"]
["   - Añade nuevos auditores en la Columna A."]
["   - Pinta la celda de la Columna B con el color que quieras (usa el bote de pintura)."]
["   - Pulsa el botón [ASIGNAR COLORES] para guardar tu elección."]
["   - (Si dejas la celda sin pintar, se le asignará un color automáticamente)."]
[]
["4. FESTIVOS Y AUSENCIAS:"]
["   - Añade fechas en la hoja 'Festivos'. Los días FESTIVOS se pintarán del color del fin de semana."]
["   - Selecciona 'EMPRESA' en el desplegable 'TIPO' para que tengan un degradado violeta."]
[]
["5. SEGURIDAD:"]
["   - Las hojas de calendario están bloqueadas para evitar errores accidentales."]
["   - Contraseña de desbloqueo (por si fuera necesario por cualquier otro motivo): 1234"]
[]
["6. CREAR UN NUEVO AÑO:"]
["   - PASO 1: Haz una COPIA de este archivo Excel (en tu ordenador) y cámbiale el nombre."]
["   - PASO 2: Abre la nueva copia."]
["   - PASO 3: Pulsa las teclas 'Alt + F8'."]
["   - PASO 4: Selecciona la macro 'INICIAR_NUEVO_ANIO' y haz clic en 'Ejecutar'."]

{"sheet":"DOC_TECNICA","index":5,"n_rows":16,"n_cols":3,"rows_kept":16,"cut":false,"hidden":false,"merged":[]}
["DOCUMENTACIÓN TÉCNICA DEL SISTEMA (VBA)"]
[]
["NOMBRE MACRO / FUNCIÓN","TIPO","DESCRIPCIÓN TÉCNICA"]
["EJECUTAR_SISTEMA_COMPLETO","Sub (Main)","Punto de entrada. Inicializa hojas, tablas y llama al generador."]
["GENERAR_CALENDARIO_ANUAL","Sub (Core)","Motor lógico. Recibe año y hoja destino. Dibuja grid 12 meses, itera BBDD y pinta celdas."]
["REGENERAR_DESDE_BOTON","Sub (UI)","Vinculada al botón del calendario. Lee el nombre de la hoja (año) y relanza el generador."]
["ASIGNAR_COLORES_CONFIG","Sub (UI)","Vinculada al botón en hoja Config. Recorre la lista y asigna RGB si falta."]
["ExisteHoja","Function","Devuelve Boolean. Evita error 'Subscript out of range' verificando si una hoja existe."]
["ConfigurarHojaMaestra","Sub","Crea la hoja 'Config', añade datos semilla y botón de asignación."]
["ConfigurarHojaFestivos","Sub","Crea o actualiza la hoja de Festivos, aplicando tabla y validación de datos."]
["ActualizarValidacionDatos","Sub","Crea/Actualiza Named Range 'ListaAuditores' dinámico para el dropdown en BBDD."]
["ObtenerColorAuditor","Function","Devuelve Long. Busca color en Config. Si no existe, crea entrada nueva con color rotativo."]
["ObtenerFestivo","Function","Devuelve String. Busca una fecha en la hoja Festivos y devuelve el nombre y tipo si existe."]
["PreservarObservaciones","Sub","Guarda en memoria (Collection) el texto de las notas antes de limpiar la hoja."]
["CrearHojaInstrucciones","Sub","Genera la hoja de ayuda para usuario final."]
["RGB_NUM","Function (UDF)","Permite escribir =RGB_NUM(R,G,B) directamente en las celdas de Excel."]